lending/lending_fUSD_20240723
["ID","MTS","AMOUNT","RATE_DAILY","PERIOD"]
[333018166,1721748640350,-657.35,0.0001088,2]
[333018167,1721748640361,-464.81408718,0.0001088,2]
[333018168,1721748640376,-6541.16774292,0.0001088,2]
[333018170,1721748640388,-987.45743925,0.0001088,2]
[333018172,1721748640399,-265.615,0.0001088,2]
[333018174,1721748640424,-3777.50181625,0.0001088,2]
[333018175,1721748640618,-1041.53124153,0.0001088,2]
[333018176,1721748640630,-3602.21195516,0.0001088,2]
[333018177,1721748640641,-4128.63986883,0.0001088,2]
[333018178,1721748640652,-3933.36463944,0.0001088,2]
[333018179,1721748640664,-4432.26839026,0.0001088,2]
[333018180,1721748640676,-6757.96750055,0.0001088,2]
[333018181,1721748640687,-30442.22785514,0.0001088,2]
[333018182,1721748640700,-1617.592005,0.0001088,2]
[333018183,1721748640711,-1363.68834929,0.0001088,2]
[333018184,1721748640723,-2023.404,0.0001088,2]
[333018185,1721748640734,-1765.90715,0.0001088,2]
[333018186,1721748640748,-20856.99658749,0.0001088,2]
[333018187,1721748640758,-150.0,0.00010881,2]
[333018188,1721748640767,-150.0,0.00010884,2]
[333018189,1721748640779,-150.0,0.00010885,2]
[333018190,1721748640789,-9496.9058,0.00010886,2]
[333018191,1721748640798,-32250.5154,0.00010886,2]
[333018192,1721748640808,-1681.50580534,0.00010886,2]
[333018193,1721748640821,-933.43431332,0.00010886,2]
[333018194,1721748640839,-3354.351,0.00010886,2]
[333018218,1721748642032,-43110.3935172,0.00010886,2]
[333018244,1721748643445,-13917.85631514,0.00010886,2]
[333018245,1721748643507,-21801.8812261,0.00010886,2]
[333018246,1721748643571,-13962.6326229,0.00010886,2]
[333018247,1721748643581,-150.0,0.0001089,2]
[333018248,1721748643591,-150.0,0.0001089,2]
[333018251,1721748643601,-150.0,0.00010893,2]
[333018253,1721748643611,-150.0,0.00010894,2]
[333018255,1721748643621,-150.0,0.00010895,2]
[333018257,1721748643631,-150.0,0.00010898,2]
[333018258,1721748643640,-168.24239597,0.000109,2]
[333018259,1721748643650,-919.3228,0.000109,2]
[333018260,1721748643659,-175.99845232,0.000109,2]
[333018261,1721748643669,-182.25416917,0.000109,2]
[333018262,1721748643678,-185.71921434,0.000109,2]
[333018263,1721748643687,-436.98744878,0.000109,2]
[333018264,1721748643697,-391.8187965,0.000109,2]
[333018265,1721748643706,-548.03901302,0.000109,2]
[333018266,1721748643716,-500.0,0.000109,2]
[333018267,1721748643726,-150.0,0.00010903,2]
[333018268,1721748643740,-150.0,0.00010904,2]
[333018269,1721748643749,-150.0,0.00010909,2]
[333018271,1721748643758,-150.0,0.00010909,2]
[333018272,1721748643767,-54.74427039,0.00010912,2]
[333018273,1721748643794,-445.25572961,0.00010912,2]
[333018274,1721748643803,-150.0,0.00010913,2]
[333018275,1721748643812,-29.72226347,0.00010923,2]
[333018276,1721748643827,-120.27773653,0.00010923,2]
[333018278,1721748643837,-150.0,0.00010925,2]
[333018279,1721748643846,-150.0,0.00010927,2]
[333018281,1721748643856,-300.0,0.00010929,2]
[333018282,1721748643915,-150.0,0.00010931,2]
[333018283,1721748643924,-150.0,0.00010931,2]
[333018284,1721748643935,-150.0,0.00010933,2]
[333018285,1721748643945,-150.0,0.00010936,2]
[333018286,1721748643954,-150.0,0.00010936,2]
[333018287,1721748643963,-150.0,0.00010938,2]
[333018288,1721748643972,-150.0,0.00010939,2]
[333018289,1721748643981,-151.45631594,0.00010939,2]
[333018290,1721748643990,-300.0,0.0001094,2]
[333018291,1721748643999,-150.0,0.00010946,2]
[333018293,1721748644008,-271.81527384,0.00010946,2]
[333018295,1721748644017,-150.0,0.00010949,2]
[333018296,1721748644026,-150.0,0.0001095,2]
[333018298,1721748644038,-150.0,0.00010952,2]
[333018300,1721748644047,-150.0,0.00010953,2]
[333018302,1721748644056,-150.0,0.00010953,2]
[333018303,1721748644065,-150.0,0.00010954,2]
[333018304,1721748644074,-300.0,0.00010954,2]
[333018305,1721748644083,-300.0,0.00010956,2]
[333018306,1721748644092,-1300.0,0.00010958,2]
[333018307,1721748644101,-1000.0,0.00010958,2]
[333018308,1721748644110,-500.0,0.00010958,2]
[333018309,1721748644119,-500.0,0.00010958,2]
[333018310,1721748644128,-604.56,0.00010958,2]
[333018311,1721748644137,-500.0,0.00010958,2]
[333018312,1721748644146,-500.0,0.00010958,2]
[333018313,1721748644155,-582.23561616,0.00010958,2]
[333018314,1721748644164,-500.0,0.00010958,2]
[333018315,1721748644174,-900.0,0.00010958,2]
[333018316,1721748644183,-498.12735912,0.00010958,2]
[333018317,1721748644192,-500.0,0.00010959,2]
[333018318,1721748644201,-250.0,0.00010959,2]
[333018319,1721748644211,-150.0,0.00010962,2]
[333018320,1721748644220,-150.0,0.00010963,2]
[333018321,1721748644229,-150.0,0.00010963,2]
[333018322,1721748644238,-150.0,0.00010965,2]
[333018323,1721748644247,-1500.0,0.00010967,2]
[333018324,1721748644257,-150.0,0.00010968,2]
[333018325,1721748644266,-150.0,0.00010968,2]
[333018326,1721748644275,-33.84801352,0.00010969,2]
[333018327,1721748644293,-116.15198648,0.00010969,2]
[333018328,1721748644302,-150.0,0.00010969,2]
[333018329,1721748644311,-150.0,0.00010972,2]
[333018330,1721748644321,-376.93170642,0.00010972,2]
[333018331,1721748644330,-150.0,0.00010973,2]
[333018332,1721748644340,-300.0,0.00010975,2]
[333018333,1721748644349,-150.0,0.00010977,2]
[333018334,1721748644358,-300.0,0.00010978,2]
[333018335,1721748644367,-210.0,0.0001098,2]
[333018336,1721748644377,-150.0,0.0001098,2]
[333018337,1721748644386,-300.0,0.00010981,2]
[333018338,1721748644395,-150.0,0.00010981,2]
[333018339,1721748644405,-150.0,0.00010983,2]
[333018340,1721748644415,-150.0,0.00010986,2]
[333018341,1721748644424,-150.0,0.00010989,2]
[333018342,1721748644433,-300.0,0.00010992,2]
[333018343,1721748644442,-300.0,0.00010993,2]
[333018344,1721748644451,-1946.15519703,0.00010997,2]
[333018372,1721748646308,-258.90026698,0.00010997,2]
[333018388,1721748646636,-3114.52045364,0.00010997,2]
[333018390,1721748646647,-452.59546473,0.00010998,2]
[333018391,1721748646661,-134.62946095,0.00010998,2]
[333018392,1721748646672,-322.54121059,0.00010998,2]
[333018393,1721748646682,-500.0,0.00010998,2]
[333018394,1721748646692,-500.0,0.00010998,2]
[333018395,1721748646702,-174.73120755,0.00010998,2]
[333018396,1721748646713,-325.26879245,0.00010998,2]
[333018397,1721748646722,-635.96,0.00010998,2]
[333018398,1721748646737,-134.01168397,0.00010998,2]
[333018399,1721748646749,-365.98831603,0.00010998,2]
[333018400,1721748646759,-500.0,0.00010998,2]
[333018401,1721748646769,-500.0,0.00010998,2]
[333018402,1721748646778,-414.01891517,0.00010999,2]
[333018403,1721748646790,-258.90026698,0.00010999,2]
[333018404,1721748646799,-500.0,0.00010999,2]
[333018405,1721748646809,-512.56116408,0.00010999,2]
[333018406,1721748646818,-500.0,0.00010999,2]
[333018407,1721748646828,-500.0,0.00010999,2]
[333018408,1721748646838,-500.0,0.00010999,2]
[333018409,1721748646848,-500.0,0.00010999,2]
[333018410,1721748646858,-500.0,0.00010999,2]
[333018411,1721748646867,-500.0,0.00010999,2]
[333018412,1721748646877,-626.27,0.00010999,2]
[333018413,1721748646887,-909.54,0.00010999,2]
[333018414,1721748646896,-500.0,0.00010999,2]
[333018415,1721748646906,-500.0,0.00010999,2]
[333018416,1721748646916,-500.0,0.00010999,2]
[333018417,1721748646926,-500.0,0.00010999,2]
[333018418,1721748646935,-217.21,0.00010999,2]
[333018419,1721748646945,-500.0,0.00010999,2]
[333018420,1721748646955,-574.56,0.00010999,2]
[333018421,1721748646964,-500.0,0.00010999,2]
[333018422,1721748646974,-500.0,0.00010999,2]
[333018423,1721748646984,-500.0,0.00010999,2]
[333018424,1721748646993,-605.27,0.00010999,2]
[333018425,1721748647003,-500.0,0.00010999,2]
[333018426,1721748647012,-417.70471774,0.00010999,2]
[333018427,1721748647024,-82.29528226,0.00010999,2]
[333018428,1721748647035,-330.73,0.00010999,2]
[333018429,1721748647044,-604.56,0.00010999,2]
[333018430,1721748647054,-604.56,0.00010999,2]
[333018431,1721748647063,-604.56,0.00010999,2]
[333018432,1721748647073,-604.56,0.00010999,2]
[333018433,1721748647082,-604.56,0.00010999,2]
[333018434,1721748647092,-604.56,0.00010999,2]
[333018435,1721748647102,-604.56,0.00010999,2]
[333018436,1721748647111,-604.56,0.00010999,2]
[333018437,1721748647120,-105.47726174,0.00010999,2]
[333018438,1721748647132,-499.08273826,0.00010999,2]
[333018439,1721748647142,-604.56,0.00010999,2]
[333018440,1721748647151,-604.56,0.00010999,2]
[333018441,1721748647160,-604.56,0.00010999,2]
[333018442,1721748647170,-604.56,0.00010999,2]
[333018443,1721748647179,-604.56,0.00010999,2]
[333018444,1721748647189,-604.56,0.00010999,2]
[333018445,1721748647198,-604.56,0.00010999,2]
[333018446,1721748647208,-604.56,0.00010999,2]
[333018447,1721748647217,-604.56,0.00010999,2]
[333018448,1721748647227,-604.56,0.00010999,2]
[333018449,1721748647236,-604.56,0.00010999,2]
[333018450,1721748647246,-604.56,0.00010999,2]
[333018451,1721748647255,-604.56,0.00010999,2]
[333018452,1721748647264,-604.74,0.00010999,2]
[333018453,1721748647274,-500.0,0.00010999,2]
[333018454,1721748647286,-500.0,0.00010999,2]
[333018455,1721748647296,-500.0,0.00010999,2]
[333018456,1721748647306,-560.43792439,0.00010999,2]
[333018457,1721748647316,-500.0,0.00010999,2]
[333018458,1721748647325,-500.0,0.00010999,2]
[333018459,1721748647335,-500.0,0.00010999,2]
[333018460,1721748647344,-500.0,0.00010999,2]
[333018461,1721748647354,-500.0,0.00010999,2]
[333018462,1721748647363,-500.0,0.00010999,2]
[333018463,1721748647373,-500.0,0.00010999,2]
[333018464,1721748647383,-500.0,0.00010999,2]
[333018465,1721748647393,-500.0,0.00010999,2]
[333018466,1721748647402,-620.39176026,0.00010999,2]
[333018467,1721748647411,-189.47,0.00010999,2]
[333018468,1721748647421,-150.0,0.00010999,2]
[333018469,1721748647430,-150.0,0.00010999,7]
[333018470,1721748647439,-150.0,0.00010999,7]
[333018471,1721748647449,-500.0,0.00010999,2]
[333018472,1721748647459,-500.0,0.00010999,2]
[333018473,1721748647468,-500.0,0.00010999,2]
[333018474,1721748647477,-500.0,0.00010999,2]
[333018475,1721748647486,-500.0,0.00010999,2]
[333018476,1721748647496,-500.0,0.00010999,2]
[333018477,1721748647505,-500.0,0.00010999,2]
[333018478,1721748647515,-500.0,0.00010999,2]
[333018479,1721748647524,-500.0,0.00010999,2]
[333018480,1721748647536,-310.88398919,0.00010999,2]
[333018481,1721748647546,-9053.20913564,0.00011,2]
[333018482,1721748647586,-10019.09632223,0.00011,2]
[333018483,1721748647598,-600.0,0.00011,2]
[333018484,1721748647611,-866.3,0.00011,2]
[333018485,1721748647622,-1230.0823413,0.00011,2]
[333018486,1721748647669,-2136.19702433,0.00011,2]
[333018487,1721748647681,-360.08234564,0.00011,2]
[333018494,1721748827014,351.5,8.219e-05,2]
[333018497,1721749087799,750.0,8.219e-05,2]
[333018500,1721749204161,153.68,0.000136,31]
[333018501,1721749204209,153.68,0.000136,31]
[333018502,1721749204260,153.68,0.000136,31]
[333018503,1721749204320,153.68,0.000136,31]
[333018504,1721749204424,153.68,0.000136,31]
[333018505,1721749204473,153.68,0.000136,31]
[333018506,1721749204521,153.68,0.000136,31]
[333018507,1721749204592,153.68,0.000136,31]
[333018508,1721749245596,1750.91837398,8.219e-05,2]
[333018509,1721749267758,291.13157161,8.219e-05,2]
[333018513,1721749346254,300.23984846,8.219e-05,2]
[333018517,1721749393554,333.92,8.219e-05,2]
[333018518,1721749498554,236001.6450066,8.219e-05,2]
[333018519,1721749581593,155.0,8.219e-05,2]
[333018520,1721749607527,236001.6450066,8.219e-05,2]
[333018524,1721749744535,236001.6450066,8.219e-05,2]
[333018525,1721749808097,153.72,0.000136,31]
[333018526,1721749808164,153.72,0.000136,31]
[333018527,1721749808230,153.72,0.000136,31]
[333018528,1721749808287,153.72,0.000136,31]
[333018538,1721749833512,-2605.7965384,9.168e-05,2]
[333018540,1721749833527,-577.9934616,9.168e-05,2]
[333018542,1721749833537,-600.0,9.175e-05,2]
[333018544,1721749833547,-166.66666666,9.322e-05,2]
[333018546,1721749833557,-469.07295113,9.322e-05,2]
[333018548,1721749833567,-309.01150625,9.34e-05,2]
[333018550,1721749833577,-153.78556042,9.414e-05,2]
[333018553,1721749833587,-400.0,9.439e-05,2]
[333018556,1721749833596,-301.54536513,9.444e-05,2]
[333018559,1721749833606,-166.66666667,9.45e-05,2]
[333018562,1721749833615,-153.77388828,9.477e-05,2]
[333018563,1721749833625,-24.18997386,9.49e-05,2]
[333018568,1721749833693,-284.82153239,9.49e-05,2]
[333018570,1721749833703,-155.80521627,9.502e-05,2]
[333018572,1721749833712,-156.02826447,9.503e-05,2]
[333018574,1721749833722,-1002.3227,9.524e-05,2]
[333018575,1721749833731,-250.0,9.528e-05,2]
[333018577,1721749833740,-154.92209384,9.548e-05,2]
[333018579,1721749833749,-155.01311997,9.549e-05,2]
[333018581,1721749833759,-154.38946822,9.607e-05,2]
[333018583,1721749833768,-300.0,9.623e-05,2]
[333018585,1721749833778,-23900.0,9.624e-05,2]
[333018587,1721749833788,-150.77350798,9.692e-05,2]
[333018589,1721749833797,-153.78556042,9.727e-05,2]
[333018591,1721749833807,-301.54536513,9.835e-05,2]
[333018592,1721749833816,-886.1166,9.862e-05,2]
[333018594,1721749833826,-151.45631594,9.922e-05,2]
[333018595,1721749833835,-154.92209384,9.963e-05,2]
[333018596,1721749833845,-151.46993681,9.969e-05,2]
[333018597,1721749833855,-150.0,9.969e-05,2]
[333018599,1721749833864,-155.40770163,0.0001,2]
[333018600,1721749833874,-478.55,0.0001,2]
[333018601,1721749833884,-150.77350798,0.00010014,2]
[333018602,1721749833893,-153.77388828,0.0001005,2]
[333018603,1721749833903,-153.78556042,0.00010066,2]
[333018604,1721749833913,-299.99,0.0001008,2]
[333018605,1721749833922,-309.01150625,0.0001016,2]
[333018606,1721749833931,-600.0,0.00010322,2]
[333018607,1721749833942,-500.0,0.000104,3]
[333018608,1721749833951,-333.92,0.00010453,2]
[333018609,1721749833961,-153.78556042,0.0001046,2]
[333018610,1721749833971,-153.8527844,0.00010482,2]
[333018611,1721749833981,-301.54536513,0.00010486,2]
[333018612,1721749833990,-918.83235021,0.000105,5]
[333018613,1721749834003,-3545.23594935,0.000105,5]
[333018614,1721749834014,-441.55013377,0.000105,5]
[333018615,1721749834254,-6586.38156667,0.000105,5]
[333018616,1721749834264,-1100.0,0.000105,3]
[333018617,1721749834273,-153.77388828,0.00010514,2]
[333018618,1721749834283,-420.0,0.00010586,2]
[333018619,1721749834294,-1700.0,0.000106,3]
[333018620,1721749834303,-155.80521627,0.00010608,2]
[333018621,1721749834312,-393.07624826,0.00010619,2]
[333018622,1721749834324,-6.92375174,0.00010619,2]
[333018623,1721749834334,-153.8527844,0.00010624,2]
[333018624,1721749834343,-1095.29557626,0.000107,3]
[333018625,1721749834502,-1204.70442374,0.000107,3]
[333018626,1721749834512,-150.0,0.00010754,2]
[333018627,1721749834521,-300.0,0.00010767,2]
[333018628,1721749834530,-544.27076687,0.0001078,2]
[333018629,1721749834540,-974.1578,0.00010786,2]
[333018630,1721749834550,-475.25688463,0.00010786,2]
[333018631,1721749834561,-524.74311537,0.00010786,2]
[333018632,1721749834571,-100000.0,0.00010786,2]
[333018633,1721749834580,-189548.1469,0.00010786,2]
[333018634,1721749834589,-150.0,0.00010793,2]
[333018635,1721749834599,-445.82092825,0.00010797,2]
[333018636,1721749834608,-2900.0,0.000108,3]
[333018637,1721749834618,-300.0,0.00010827,2]
[333018638,1721749834628,-1500.0,0.0001083,2]
[333018639,1721749834638,-154.92209384,0.00010831,2]
[333018640,1721749834648,-1500.0,0.00010836,2]
[333018641,1721749834657,-166.66666668,0.00010855,2]
[333018642,1721749834667,-301.54536513,0.00010869,2]
[333018643,1721749834678,-220.94,0.00010877,2]
[333018644,1721749834688,-300.0,0.00010891,2]
[333018645,1721749834698,-175.99845232,0.000109,2]
[333018646,1721749834707,-500.0,0.000109,3]
[333018647,1721749834717,-365.359342,0.000109,2]
[333018648,1721749834726,-433.37086906,0.000109,2]
[333018649,1721749834736,-586.68783522,0.000109,2]
[333018650,1721749834745,-176.20805696,0.000109,2]
[333018651,1721749834755,-151.32323002,0.00010909,2]
[333018652,1721749834765,-300.0,0.00010911,2]
[333018653,1721749834774,-153.8527844,0.0001092,2]
[333018654,1721749834784,-151.45631594,0.00010941,2]
[333018655,1721749834797,-500.0,0.0001095,2]
[333018656,1721749834807,-286.70183216,0.00010958,2]
[333018657,1721749834817,-155.0,0.00010958,2]
[333018658,1721749834828,-526.09991014,0.00010958,2]
[333018659,1721749834838,-500.0,0.00010958,2]
[333018660,1721749834848,-187.74,0.00010958,2]
[333018661,1721749834858,-500.0,0.00010958,2]
[333018662,1721749834867,-500.0,0.00010958,2]
[333018663,1721749834877,-92.38557591,0.00010958,2]
[333018664,1721749835765,50350.88572654,8.219e-05,2]
[333018680,1721749838359,-490.1733676,0.00010686,2]
[333018681,1721749838370,-522.95955266,0.00010686,2]
[333018682,1721749838414,-1735.69427974,0.00010686,2]
[333018683,1721749838424,-407.61442409,0.00010958,2]
[333018684,1721749838433,-500.0,0.00010958,2]
[333018685,1721749838442,-500.0,0.00010958,2]
[333018686,1721749838451,-500.0,0.00010958,2]
[333018687,1721749838461,-183.53156918,0.00010958,2]
[333018688,1721749838470,-1300.0,0.00010958,2]
[333018689,1721749838479,-1000.0,0.00010958,2]
[333018690,1721749838489,-500.0,0.00010958,2]
[333018691,1721749838498,-600.0,0.00010958,2]
[333018692,1721749838507,-500.0,0.00010958,2]
[333018693,1721749838517,-500.0,0.00010958,2]
[333018694,1721749838526,-500.0,0.00010958,2]
[333018695,1721749838535,-500.0,0.00010958,2]
[333018696,1721749838547,-500.0,0.00010958,2]
[333018697,1721749838556,-500.0,0.00010958,2]
[333018698,1721749838565,-500.0,0.00010958,2]
[333018699,1721749838574,-500.0,0.00010958,2]
[333018700,1721749838583,-500.0,0.00010958,2]
[333018701,1721749838592,-500.0,0.00010958,2]
[333018702,1721749838601,-500.0,0.00010958,2]
[333018703,1721749838610,-500.0,0.00010959,2]
[333018704,1721749838620,-500.0,0.00010959,2]
[333018705,1721749838629,-250.0,0.00010959,2]
[333018707,1721749838639,-500.0,0.00010968,2]
[333018708,1721749838648,-500.0,0.00010976,2]
[333018709,1721749838657,-500.0,0.00010985,2]
[333018710,1721749838666,-500.0,0.00010994,2]
[333018711,1721749838675,-600.0,0.00010997,3]
[333018712,1721749838684,-1184.57,0.00010999,2]
[333018713,1721749838693,-500.0,0.00010999,2]
[333018714,1721749838703,-500.0,0.00010999,2]
[333018715,1721749838711,-500.0,0.00010999,2]
[333018716,1721749838721,-500.0,0.00010999,2]
[333018717,1721749838732,-500.0,0.00010999,2]
[333018718,1721749838741,-500.0,0.00010999,2]
[333018719,1721749838751,-500.0,0.00010999,2]
[333018720,1721749838759,-500.0,0.00010999,2]
[333018721,1721749838768,-446.75942031,0.00010999,2]
[333018722,1721749838777,-500.0,0.00010999,2]
[333018723,1721749838785,-500.0,0.00010999,2]
[333018724,1721749838796,-1202.0,0.00010999,2]
[333018725,1721749838804,-150.109,0.00010999,2]
[333018726,1721749838814,-5120.0,0.00010999,2]
[333018727,1721749838823,-5827.0,0.00010999,2]
[333018728,1721749838833,-1668.0,0.00010999,2]
[333018729,1721749838843,-4077.4680014,0.00010999,2]
[333018730,1721749838869,-494.6406693,0.00010999,2]
[333018731,1721749838879,-1000.005,0.00010999,2]
[333018732,1721749838894,-630.37381688,0.00010999,2]
[333018736,1721749840629,-539.033,0.00010686,2]
[333018737,1721749840639,-2569.167,0.00010999,2]
[333018813,1721749843747,-571.48088153,0.00010999,2]
[333018814,1721749843761,-1267.53629767,0.00010999,2]
[333018815,1721749843801,-5958.007393,0.00010999,2]
[333018816,1721749843812,-21789.32094022,0.00010999,2]
[333018817,1721749843822,-644.0,0.00011,2]
[333018818,1721749843831,-48873.34519091,0.00011,2]
[333018819,1721749843842,-30010.58323109,0.00011,2]
[333018856,1721749846394,-255.0,0.00010958,2]
[333018859,1721749846643,-245.0,0.00010958,2]
[333018862,1721749846652,-337.46431487,0.0001099,2]
[333018865,1721749846662,-12136.67059672,0.00011,2]
[333018876,1721749940701,393.14,8.219e-05,2]
[333018877,1721749996553,10319.81926967,8.219e-05,2]
[333018880,1721750210555,236048.02365791,8.219e-05,2]
[333018881,1721750313635,236048.02365791,8.219e-05,2]
[333018883,1721750386994,2100.0,8.219e-05,2]
[333018885,1721750410984,153.73,0.000136,31]
[333018886,1721750411038,153.73,0.000136,31]
[333018887,1721750411093,153.73,0.000136,31]
[333018888,1721750411153,153.73,0.000136,31]
[333018889,1721750426563,150.0,8.219e-05,2]
[333018890,1721750426585,150.0,8.219e-05,2]
[333018891,1721750426607,150.0,8.219e-05,2]
[333018892,1721750426628,150.0,8.219e-05,2]
[333018893,1721750426649,150.0,8.219e-05,2]
[333018894,1721750426671,150.0,8.219e-05,2]
[333018895,1721750426692,150.0,8.219e-05,2]
[333018896,1721750426714,150.0,8.219e-05,2]
[333018897,1721750426735,150.0,8.219e-05,2]
[333018898,1721750426760,150.0,8.219e-05,2]
[333018899,1721750426781,150.0,8.219e-05,2]
[333018900,1721750426802,150.0,8.219e-05,2]
[333018901,1721750426824,150.0,8.219e-05,2]
[333018902,1721750426846,150.0,8.219e-05,2]
[333018903,1721750426868,150.0,8.219e-05,2]
[333018904,1721750426888,150.0,8.219e-05,2]
[333018905,1721750426910,150.0,8.219e-05,2]
[333018906,1721750426932,150.0,8.219e-05,2]
[333018907,1721750426954,150.0,8.219e-05,2]
[333018908,1721750426979,233198.02365791,8.219e-05,2]
[333018909,1721750482977,410.98,8.219e-05,2]
[333018910,1721750509400,150.0,8.219e-05,2]
[333018911,1721750509422,150.0,8.219e-05,2]
[333018912,1721750509448,150.0,8.219e-05,2]
[333018913,1721750509471,150.0,8.219e-05,2]
[333018914,1721750545003,1350.0,8.219e-05,2]
[333018917,1721750595530,150.0,8.219e-05,2]
[333018918,1721750595551,150.0,8.219e-05,2]
[333018919,1721750595571,150.0,8.219e-05,2]
[333018921,1721750686697,236048.02365791,8.219e-05,2]
[333018922,1721750716010,7568.12851025,8.219e-05,2]
[333018923,1721750716582,236048.02365791,8.219e-05,2]
[333018924,1721750732258,150.0,8.219e-05,2]
[333018925,1721750732280,150.0,8.219e-05,2]
[333018926,1721750732302,150.0,8.219e-05,2]
[333018927,1721750732323,150.0,8.219e-05,2]
[333018928,1721750732343,150.0,8.219e-05,2]
[333018929,1721750732364,150.0,8.219e-05,2]
[333018930,1721750732385,150.0,8.219e-05,2]
[333018931,1721750732406,150.0,8.219e-05,2]
[333018932,1721750732440,150.0,8.219e-05,2]
[333018933,1721750732464,19012.81266038,8.219e-05,2]
[333018934,1721750807025,7568.12851025,8.219e-05,2]
[333018935,1721750822033,7568.12851025,8.219e-05,2]
[333018936,1721750832272,20362.81266038,8.219e-05,2]
[333018938,1721750939788,20362.81266038,8.219e-05,2]
[333018939,1721750953035,7568.12851025,8.219e-05,2]
[333018940,1721750955880,20362.81266038,8.219e-05,2]
[333018941,1721750956321,155.07415215,8.219e-05,2]
[333018942,1721750964033,7568.12851025,8.219e-05,2]
[333018943,1721750966106,158.83612492,8.219e-05,2]
[333018944,1721750982761,236048.02365791,8.219e-05,2]
[333018948,1721751013320,153.77,0.000129,31]
[333018949,1721751013596,153.77,0.000129,31]
[333018950,1721751013629,153.77,0.000129,31]
[333018951,1721751023943,433.87,8.219e-05,2]
[333018966,1721751031433,-278.11035562,9.489e-05,2]
[333018967,1721751031443,-18713.37,9.492e-05,2]
[333018968,1721751031454,-6800.0,9.5e-05,2]
[333018969,1721751031465,-278.11035562,9.503e-05,2]
[333018970,1721751031475,-153.78556042,9.659e-05,2]
[333018971,1721751031485,-1000.0,9.678e-05,2]
[333018972,1721751031495,-273.90370666,9.708e-05,2]
[333018973,1721751031505,-278.11035562,9.752e-05,2]
[333018974,1721751031514,-278.11035562,9.811e-05,2]
[333018975,1721751031526,-2918.32,9.826e-05,2]
[333018976,1721751031536,-150.99,9.826e-05,2]
[333018977,1721751031546,-203.19,9.844e-05,2]
[333018978,1721751031556,-499.99,9.845e-05,2]
[333018979,1721751031566,-28055.714,9.862e-05,2]
[333018980,1721751031577,-150.0,9.961e-05,2]
[333018981,1721751031588,-5470.62081925,9.962e-05,2]
[333018982,1721751031644,-14892.19184113,9.962e-05,2]
[333018983,1721751031654,-158.77634494,9.962e-05,2]
[333018984,1721751031664,-7568.12851025,9.962e-05,2]
[333018985,1721751031674,-150.98429648,9.969e-05,2]
[333018986,1721751031684,-150.77350798,9.979e-05,2]
[333018987,1721751031694,-156.74383414,9.987e-05,2]
[333018989,1721751031706,-155.84518931,0.0001,2]
[333018991,1721751031715,-4000.0,0.0001,2]
[333018993,1721751031725,-278.11035562,0.00010065,2]
[333018995,1721751031734,-153.8527844,0.00010067,2]
[333018997,1721751031743,-151.12,0.00010073,2]
[333018999,1721751031752,-151.12,0.00010083,2]
[333019000,1721751031761,-151.12,0.00010093,2]
[333019002,1721751031770,-151.12,0.00010103,2]
[333019004,1721751031779,-151.12,0.00010114,2]
[333019006,1721751031789,-155.80521627,0.00010116,2]
[333019007,1721751031797,-151.12,0.00010124,2]
[333019009,1721751031807,-293.41184405,0.00010127,2]
[333019011,1721751031816,-151.45631594,0.000102,2]
[333019013,1721751031826,-273.90370666,0.0001023,2]
[333019015,1721751031834,-166.66666668,0.00010271,2]